[Event "Titled Tuesday Blitz November 01 Early 2022"]
[White "Weetik, Vjacheslav"]
[Black "Arabidze, Meri"]
[WhiteFideId "4153472"]
[BlackFideId "13604040"]
[WhiteElo "2713"]
[BlackElo "2616"]
[Result "0-1"]
[Round "06"]
[TimeControl "180+1"]
[Date "2022.11.02"]
[WhiteClock "0:00:05"]
[BlackClock "0:00:12"]

1. d4 {[%clk 0:02:59]}  f5 {[%clk 0:02:56]} 2. g3 {[%clk 0:02:59]}  Nf6 {[%clk 0:02:55]} 3. Bg2 {[%clk 0:02:58]}  e6 {[%clk 0:02:56]} 4. c4 {[%clk 0:02:57]}  c6 {[%clk 0:02:55]} 5. Qc2 {[%clk 0:02:54]}  d5 {[%clk 0:02:53]} 6. Nh3 {[%clk 0:02:54]}  Bd6 {[%clk 0:02:52]} 7. O-O {[%clk 0:02:52]}  O-O {[%clk 0:02:52]} 8. Bf4 {[%clk 0:02:52]}  Be7 {[%clk 0:02:53]} 9. Nd2 {[%clk 0:02:50]}  b6 {[%clk 0:02:49]} 10. Rac1 {[%clk 0:02:33]}  Ne4 {[%clk 0:02:46]} 11. cxd5 {[%clk 0:02:19]}  cxd5 {[%clk 0:02:38]} 12. Bc7 {[%clk 0:02:01]}  Qd7 {[%clk 0:02:30]} 13. Nf4 {[%clk 0:01:50]}  Nxd2 {[%clk 0:02:11]} 14. Qxd2 {[%clk 0:01:41]}  Nc6 {[%clk 0:02:12]} 15. Be5 {[%clk 0:01:22]}  Nxe5 {[%clk 0:02:11]} 16. dxe5 {[%clk 0:01:22]}  Bg5 {[%clk 0:02:05]} 17. Rc2 {[%clk 0:01:05]}  Ba6 {[%clk 0:01:57]} 18. Rfc1 {[%clk 0:01:04]}  Bxf4 {[%clk 0:01:51]} 19. gxf4 {[%clk 0:00:58]}  Rac8 {[%clk 0:01:52]} 20. Bf3 {[%clk 0:00:51]}  Rxc2 {[%clk 0:01:31]} 21. Rxc2 {[%clk 0:00:50]}  Rc8 {[%clk 0:01:32]} 22. Qc1 {[%clk 0:00:45]}  h6 {[%clk 0:01:24]} 23. h4 {[%clk 0:00:40]}  g6 {[%clk 0:01:14]} 24. Kh2 {[%clk 0:00:37]}  Kg7 {[%clk 0:01:08]} 25. Kg3 {[%clk 0:00:37]}  Rc4 {[%clk 0:00:57]} 26. b3 {[%clk 0:00:33]}  Rc8 {[%clk 0:00:55]} 27. e3 {[%clk 0:00:32]}  Qd8 {[%clk 0:00:33]} 28. Rxc8 {[%clk 0:00:30]}  Qxc8 {[%clk 0:00:34]} 29. Qa3 {[%clk 0:00:28]}  Kf7 {[%clk 0:00:26]} 30. h5 {[%clk 0:00:18]}  g5 {[%clk 0:00:25]} 31. fxg5 {[%clk 0:00:14]}  hxg5 {[%clk 0:00:26]} 32. Qd6 {[%clk 0:00:14]}  Bd3 {[%clk 0:00:20]} 33. Bxd5 {[%clk 0:00:08]}  f4+ {[%clk 0:00:19]} 34. exf4 {[%clk 0:00:07]}  gxf4+ {[%clk 0:00:20]} 35. Kxf4 {[%clk 0:00:08]}  Qc1+ {[%clk 0:00:18]} 36. Kg3 {[%clk 0:00:05]}  Qg5+ {[%clk 0:00:18]} 37. Kf3 {[%clk 0:00:05]}  Qxh5+ {[%clk 0:00:13]} 38. Ke3 {[%clk 0:00:05]}  Qe2+ {[%clk 0:00:13]} 39. Kd4 {[%clk 0:00:04]}  exd5 {[%clk 0:00:13]} 40. Qf6+ {[%clk 0:00:04]}  Ke8 {[%clk 0:00:12]} 41. e6 {[%clk 0:00:05]}  Qb2+ {[%clk 0:00:11]} 42. Kxd5 {[%clk 0:00:05]}  Qxf6 {[%clk 0:00:12]} 0-1


[Site "https://www.chess.com"]

[Event "Titled Tuesday Blitz November 01 Early 2022"]
[White "Yeritsyan, Hayk"]
[Black "Melikhov, Evgeny V."]
[WhiteFideId "13307320"]
[BlackFideId "4122046"]
[WhiteElo "2397"]
[BlackElo "2169"]
[Result "0-1"]
[Round "06"]
[TimeControl "180+1"]
[Date "2022.11.02"]
[WhiteClock "0:00:04"]
[BlackClock "0:00:06"]

1. d4 {[%clk 0:02:59]}  Nf6 {[%clk 0:02:59]} 2. Nf3 {[%clk 0:03:00]}  d5 {[%clk 0:02:59]} 3. e3 {[%clk 0:02:59]}  c5 {[%clk 0:02:58]} 4. Bd3 {[%clk 0:03:00]}  Nc6 {[%clk 0:02:58]} 5. c3 {[%clk 0:03:00]}  e6 {[%clk 0:02:57]} 6. Nbd2 {[%clk 0:03:00]}  Bd6 {[%clk 0:02:56]} 7. Qe2 {[%clk 0:02:59]}  O-O {[%clk 0:02:56]} 8. O-O {[%clk 0:03:00]}  e5 {[%clk 0:02:54]} 9. dxc5 {[%clk 0:03:00]}  Bxc5 {[%clk 0:02:54]} 10. e4 {[%clk 0:03:00]}  Bg4 {[%clk 0:02:52]} 11. h3 {[%clk 0:02:44]}  Bxf3 {[%clk 0:02:50]} 12. Qxf3 {[%clk 0:02:27]}  d4 {[%clk 0:02:28]} 13. Nb3 {[%clk 0:02:27]}  Bb6 {[%clk 0:02:27]} 14. cxd4 {[%clk 0:02:27]}  Nxd4 {[%clk 0:02:26]} 15. Nxd4 {[%clk 0:02:27]}  Bxd4 {[%clk 0:02:26]} 16. Bg5 {[%clk 0:02:21]}  h6 {[%clk 0:02:19]} 17. Bxf6 {[%clk 0:02:20]}  Qxf6 {[%clk 0:02:19]} 18. Qxf6 {[%clk 0:02:20]}  gxf6 {[%clk 0:02:19]} 19. Rac1 {[%clk 0:02:12]}  Rfc8 {[%clk 0:02:16]} 20. b3 {[%clk 0:02:11]}  a6 {[%clk 0:02:02]} 21. Bc4 {[%clk 0:02:08]}  Rc7 {[%clk 0:01:56]} 22. Bd5 {[%clk 0:02:07]}  Rac8 {[%clk 0:01:55]} 23. Rxc7 {[%clk 0:01:51]}  Rxc7 {[%clk 0:01:54]} 24. a4 {[%clk 0:01:46]}  b6 {[%clk 0:01:49]} 25. Bc4 {[%clk 0:01:42]}  a5 {[%clk 0:01:37]} 26. Rd1 {[%clk 0:01:38]}  Kf8 {[%clk 0:01:36]} 27. Kf1 {[%clk 0:01:37]}  Ke7 {[%clk 0:01:36]} 28. Ke2 {[%clk 0:01:37]}  Rc8 {[%clk 0:01:30]} 29. Kf3 {[%clk 0:01:32]}  Rg8 {[%clk 0:01:26]} 30. g3 {[%clk 0:01:27]}  h5 {[%clk 0:01:20]} 31. h4 {[%clk 0:01:27]}  Rc8 {[%clk 0:01:13]} 32. Rc1 {[%clk 0:01:22]}  Bb2 {[%clk 0:01:02]} 33. Rc2 {[%clk 0:01:19]}  Bd4 {[%clk 0:01:02]} 34. Ke2 {[%clk 0:01:02]}  Kf8 {[%clk 0:00:46]} 35. Rd2 {[%clk 0:00:42]}  Kg7 {[%clk 0:00:45]} 36. Rd3 {[%clk 0:00:40]}  Kg6 {[%clk 0:00:44]} 37. Rf3 {[%clk 0:00:39]}  Rc7 {[%clk 0:00:42]} 38. Kf1 {[%clk 0:00:27]}  Rc8 {[%clk 0:00:38]} 39. Rf5 {[%clk 0:00:26]}  Rc7 {[%clk 0:00:37]} 40. Ke2 {[%clk 0:00:17]}  Rc8 {[%clk 0:00:36]} 41. Kd2 {[%clk 0:00:16]}  Rc7 {[%clk 0:00:35]} 42. Be2 {[%clk 0:00:16]}  Rc3 {[%clk 0:00:30]} 43. Bxh5+ {[%clk 0:00:16]}  Kg7 {[%clk 0:00:28]} 44. Bd1 {[%clk 0:00:10]}  Rc6 {[%clk 0:00:20]} 45. Be2 {[%clk 0:00:07]}  Bc3+ {[%clk 0:00:17]} 46. Kc2 {[%clk 0:00:06]}  Bd4+ {[%clk 0:00:16]} 47. Bc4 {[%clk 0:00:06]}  Kg6 {[%clk 0:00:15]} 48. Kd3 {[%clk 0:00:04]}  Kg7 {[%clk 0:00:15]} 49. Ke2 {[%clk 0:00:04]}  Kg6 {[%clk 0:00:15]} 50. f4 {[%clk 0:00:03]}  Kg7 {[%clk 0:00:12]} 51. Kf3 {[%clk 0:00:04]}  b5 {[%clk 0:00:11]} 52. axb5 {[%clk 0:00:03]}  Rc7 {[%clk 0:00:11]} 53. Bd3 {[%clk 0:00:02]}  Rc3 {[%clk 0:00:10]} 54. Ke2 {[%clk 0:00:02]}  Rxb3 {[%clk 0:00:10]} 55. Bc4 {[%clk 0:00:02]}  Re3+ {[%clk 0:00:09]} 56. Kd2 {[%clk 0:00:02]}  Rxe4 {[%clk 0:00:09]} 57. fxe5 {[%clk 0:00:02]}  Bxe5 {[%clk 0:00:09]} 58. Bd3 {[%clk 0:00:02]}  Rd4 {[%clk 0:00:09]} 59. h5 {[%clk 0:00:02]}  a4 {[%clk 0:00:09]} 60. Kc2 {[%clk 0:00:02]}  a3 {[%clk 0:00:08]} 61. Rf1 {[%clk 0:00:03]}  Rg4 {[%clk 0:00:08]} 62. Rf3 {[%clk 0:00:01]}  a2 {[%clk 0:00:07]} 63. Rf1 {[%clk 0:00:02]}  a1=Q {[%clk 0:00:07]} 64. Rxa1 {[%clk 0:00:02]}  Bxa1 {[%clk 0:00:07]} 65. b6 {[%clk 0:00:03]}  Rb4 {[%clk 0:00:06]} 66. Bf5 {[%clk 0:00:03]}  Rxb6 {[%clk 0:00:06]} 67. h6+ {[%clk 0:00:04]}  Kxh6 {[%clk 0:00:06]} 0-1


[Site "https://www.chess.com"]

[Event "Titled Tuesday Blitz November 01 Early 2022"]
[White "Zacurdajev, Dmitry"]
[Black "Mitrovic, Darko R"]
[WhiteFideId "4196309"]
[BlackFideId "927023"]
[WhiteElo "2179"]
[BlackElo "2150"]
[Result "1-0"]
[Round "06"]
[TimeControl "180+1"]
[Date "2022.11.02"]
[WhiteClock "0:00:09"]
[BlackClock "0:00:01"]

1. d4 {[%clk 0:00:18]}  e6 {[%clk 0:02:48]} 2. c4 {[%clk 0:00:19]}  Nf6 {[%clk 0:00:15]} 3. Nc3 {[%clk 0:00:19]}  Bb4 {[%clk 0:00:15]} 4. Nf3 {[%clk 0:00:20]}  Bxc3+ {[%clk 0:00:15]} 5. bxc3 {[%clk 0:00:20]}  d6 {[%clk 0:00:15]} 6. Bg5 {[%clk 0:00:18]}  Nbd7 {[%clk 0:00:16]} 7. e3 {[%clk 0:00:19]}  Qe7 {[%clk 0:00:16]} 8. Bd3 {[%clk 0:00:19]}  h6 {[%clk 0:00:15]} 9. Bxf6 {[%clk 0:00:19]}  Nxf6 {[%clk 0:00:15]} 10. O-O {[%clk 0:00:20]}  O-O {[%clk 0:00:15]} 11. Rb1 {[%clk 0:00:20]}  e5 {[%clk 0:00:14]} 12. Nd2 {[%clk 0:00:20]}  b6 {[%clk 0:00:14]} 13. Qc2 {[%clk 0:00:20]}  Bb7 {[%clk 0:00:13]} 14. Rfe1 {[%clk 0:00:19]}  Rad8 {[%clk 0:00:13]} 15. Ne4 {[%clk 0:00:20]}  Nxe4 {[%clk 0:00:12]} 16. Bxe4 {[%clk 0:00:21]}  Bxe4 {[%clk 0:00:12]} 17. Qxe4 {[%clk 0:00:21]}  Qe6 {[%clk 0:00:10]} 18. Rb4 {[%clk 0:00:20]}  f5 {[%clk 0:00:07]} 19. Qb7 {[%clk 0:00:16]}  Qe7 {[%clk 0:00:06]} 20. Qd5+ {[%clk 0:00:13]}  Qf7 {[%clk 0:00:05]} 21. Qc6 {[%clk 0:00:12]}  a5 {[%clk 0:00:05]} 22. Rb2 {[%clk 0:00:11]}  Qd7 {[%clk 0:00:05]} 23. Qd5+ {[%clk 0:00:10]}  Qf7 {[%clk 0:00:05]} 24. Qc6 {[%clk 0:00:11]}  e4 {[%clk 0:00:04]} 25. Qb5 {[%clk 0:00:05]}  Rde8 {[%clk 0:00:04]} 26. g3 {[%clk 0:00:05]}  Qe7 {[%clk 0:00:03]} 27. Qd5+ {[%clk 0:00:05]}  Qf7 {[%clk 0:00:03]} 28. Qxf7+ {[%clk 0:00:06]}  Rxf7 {[%clk 0:00:03]} 29. Rb5 {[%clk 0:00:06]}  g6 {[%clk 0:00:02]} 30. Reb1 {[%clk 0:00:07]}  h5 {[%clk 0:00:02]} 31. c5 {[%clk 0:00:07]}  dxc5 {[%clk 0:00:02]} 32. dxc5 {[%clk 0:00:08]}  Rd7 {[%clk 0:00:01]} 33. cxb6 {[%clk 0:00:08]}  cxb6 {[%clk 0:00:01]} 34. Rxb6 {[%clk 0:00:09]}  Kg7 {[%clk 0:00:01]} 35. Ra6 {[%clk 0:00:09]}  Rc8 {[%clk 0:00:01]} 36. Rbb6 {[%clk 0:00:09]} 1-0


[Site "https://www.chess.com"]

[Event "Titled Tuesday Blitz November 01 Early 2022"]
[White "Zaksaite, Salomeja"]
[Black "Chan, Kim Yew"]
[WhiteFideId "12801496"]
[BlackFideId "5717981"]
[WhiteElo "2094"]
[BlackElo "2206"]
[Result "0-1"]
[Round "06"]
[TimeControl "180+1"]
[Date "2022.11.02"]
[WhiteClock "0:00:01"]
[BlackClock "0:00:07"]

1. e4 {[%clk 0:03:00]}  e5 {[%clk 0:02:58]} 2. Nf3 {[%clk 0:03:00]}  Nf6 {[%clk 0:02:58]} 3. Nxe5 {[%clk 0:02:59]}  d6 {[%clk 0:02:56]} 4. Nf3 {[%clk 0:02:56]}  Nxe4 {[%clk 0:02:56]} 5. Qe2 {[%clk 0:02:56]}  Qe7 {[%clk 0:02:55]} 6. d3 {[%clk 0:02:57]}  Nf6 {[%clk 0:02:55]} 7. Bg5 {[%clk 0:02:57]}  Qxe2+ {[%clk 0:02:50]} 8. Bxe2 {[%clk 0:02:58]}  Be7 {[%clk 0:02:51]} 9. Nc3 {[%clk 0:02:58]}  Be6 {[%clk 0:02:43]} 10. Nd4 {[%clk 0:02:53]}  Nbd7 {[%clk 0:02:20]} 11. Ndb5 {[%clk 0:02:45]}  Bd8 {[%clk 0:02:12]} 12. O-O-O {[%clk 0:02:31]}  O-O {[%clk 0:01:53]} 13. Bf3 {[%clk 0:02:24]}  a6 {[%clk 0:01:46]} 14. Bxb7 {[%clk 0:02:06]}  Rb8 {[%clk 0:01:44]} 15. Bxa6 {[%clk 0:02:06]}  Rb6 {[%clk 0:01:44]} 16. Bc8 {[%clk 0:02:06]}  Ng4 {[%clk 0:01:20]} 17. Be3 {[%clk 0:01:11]}  Nxe3 {[%clk 0:01:12]} 18. fxe3 {[%clk 0:01:08]}  Bg5 {[%clk 0:01:09]} 19. Bxd7 {[%clk 0:01:08]}  Bxe3+ {[%clk 0:01:09]} 20. Kb1 {[%clk 0:01:08]}  Bxd7 {[%clk 0:01:08]} 21. Nxc7 {[%clk 0:01:07]}  Bd4 {[%clk 0:00:41]} 22. N7d5 {[%clk 0:01:04]}  Rb7 {[%clk 0:00:36]} 23. b3 {[%clk 0:00:56]}  Be6 {[%clk 0:00:20]} 24. Ne2 {[%clk 0:00:25]}  Be5 {[%clk 0:00:08]} 25. d4 {[%clk 0:00:19]}  Bxd5 {[%clk 0:00:08]} 26. dxe5 {[%clk 0:00:19]}  Bxg2 {[%clk 0:00:09]} 27. Rhg1 {[%clk 0:00:18]}  Bf3 {[%clk 0:00:09]} 28. Rd2 {[%clk 0:00:14]}  dxe5 {[%clk 0:00:09]} 29. c4 {[%clk 0:00:09]}  e4 {[%clk 0:00:08]} 30. Nd4 {[%clk 0:00:08]}  e3 {[%clk 0:00:08]} 31. Rb2 {[%clk 0:00:02]}  Be4+ {[%clk 0:00:08]} 32. Kc1 {[%clk 0:00:02]}  f5 {[%clk 0:00:07]} 33. Re2 {[%clk 0:00:01]}  f4 {[%clk 0:00:07]} 0-1


[Site "https://www.chess.com"]

[Event "Titled Tuesday Blitz November 01 Early 2022"]
[White "Zemlyanskii, Ivan"]
[Black "Paravyan, David"]
[WhiteFideId "24249971"]
[BlackFideId "4194985"]
[WhiteElo "2107"]
[BlackElo "2555"]
[Result "0-1"]
[Round "06"]
[TimeControl "180+1"]
[Date "2022.11.01"]
[WhiteClock "0:00:01"]
[BlackClock "0:02:11"]

1. d4 {[%clk 0:03:00]}  Nf6 {[%clk 0:02:55]} 2. c4 {[%clk 0:03:01]}  g6 {[%clk 0:02:55]} 3. Nf3 {[%clk 0:03:01]}  Bg7 {[%clk 0:02:54]} 4. e3 {[%clk 0:03:02]}  O-O {[%clk 0:02:54]} 5. Be2 {[%clk 0:02:58]}  c5 {[%clk 0:02:54]} 6. d5 {[%clk 0:02:58]}  d6 {[%clk 0:02:54]} 7. Nc3 {[%clk 0:02:58]}  e6 {[%clk 0:02:54]} 8. O-O {[%clk 0:02:58]}  exd5 {[%clk 0:02:54]} 9. cxd5 {[%clk 0:02:55]}  Bg4 {[%clk 0:02:54]} 10. h3 {[%clk 0:02:53]}  Bxf3 {[%clk 0:02:53]} 11. Bxf3 {[%clk 0:02:54]}  Nbd7 {[%clk 0:02:51]} 12. Qc2 {[%clk 0:02:54]}  c4 {[%clk 0:02:51]} 13. Be2 {[%clk 0:02:48]}  Rc8 {[%clk 0:02:51]} 14. e4 {[%clk 0:02:47]}  Nc5 {[%clk 0:02:50]} 15. Be3 {[%clk 0:02:20]}  Re8 {[%clk 0:02:49]} 16. Bf3 {[%clk 0:02:04]}  Nfd7 {[%clk 0:02:45]} 17. Nb5 {[%clk 0:01:48]}  Ne5 {[%clk 0:02:43]} 18. Be2 {[%clk 0:01:31]}  a6 {[%clk 0:02:42]} 19. Nc3 {[%clk 0:01:15]}  Ned3 {[%clk 0:02:40]} 20. Bf3 {[%clk 0:01:09]}  Qh4 {[%clk 0:02:36]} 21. Rad1 {[%clk 0:01:00]}  b5 {[%clk 0:02:35]} 22. a3 {[%clk 0:00:52]}  Re7 {[%clk 0:02:20]} 23. Bg4 {[%clk 0:00:44]}  Rce8 {[%clk 0:02:16]} 24. g3 {[%clk 0:00:37]}  Qf6 {[%clk 0:02:17]} 25. Bxc5 {[%clk 0:00:10]}  Nxc5 {[%clk 0:02:13]} 26. Rfe1 {[%clk 0:00:09]}  h5 {[%clk 0:02:13]} 27. Be2 {[%clk 0:00:08]}  Nxe4 {[%clk 0:02:13]} 28. Nxe4 {[%clk 0:00:09]}  Rxe4 {[%clk 0:02:13]} 29. Qd2 {[%clk 0:00:03]}  Qxb2 {[%clk 0:02:13]} 30. f3 {[%clk 0:00:01]}  Rxe2 {[%clk 0:02:11]} 31. Rxe2 {[%clk 0:00:01]}  Rxe2 {[%clk 0:02:11]} 32. Qg5 {[%clk 0:00:01]}  Rg2+ {[%clk 0:02:11]} 0-1


[Site "https://www.chess.com"]

[Event "Titled Tuesday Blitz November 01 Early 2022"]
[White "Aarav Dengla"]
[Black "Ardila, Oscar Humberto"]
[WhiteFideId "45059756"]
[BlackFideId "4404742"]
[WhiteElo "2257"]
[BlackElo "1898"]
[Result "1-0"]
[Round "07"]
[TimeControl "180+1"]
[Date "2022.11.02"]
[WhiteClock "0:00:09"]
[BlackClock "0:00:05"]

1. e4 {[%clk 0:03:00]}  e5 {[%clk 0:02:59]} 2. Nf3 {[%clk 0:03:00]}  Nf6 {[%clk 0:03:00]} 3. Nxe5 {[%clk 0:02:57]}  d6 {[%clk 0:03:00]} 4. Nf3 {[%clk 0:02:54]}  Nxe4 {[%clk 0:03:00]} 5. d4 {[%clk 0:02:53]}  Be7 {[%clk 0:02:59]} 6. Bd3 {[%clk 0:02:53]}  d5 {[%clk 0:03:00]} 7. O-O {[%clk 0:02:52]}  O-O {[%clk 0:02:59]} 8. Re1 {[%clk 0:02:48]}  Nf6 {[%clk 0:02:59]} 9. h3 {[%clk 0:02:47]}  Nc6 {[%clk 0:02:58]} 10. c3 {[%clk 0:02:44]}  Bd7 {[%clk 0:02:56]} 11. b4 {[%clk 0:02:43]}  a6 {[%clk 0:02:55]} 12. a4 {[%clk 0:02:43]}  h6 {[%clk 0:02:53]} 13. Bf4 {[%clk 0:02:42]}  Re8 {[%clk 0:02:48]} 14. Ne5 {[%clk 0:02:34]}  Bf8 {[%clk 0:02:39]} 15. Nd2 {[%clk 0:02:23]}  Be6 {[%clk 0:02:21]} 16. Qf3 {[%clk 0:02:17]}  Nxe5 {[%clk 0:02:17]} 17. dxe5 {[%clk 0:02:15]}  Nd7 {[%clk 0:02:17]} 18. Qg3 {[%clk 0:02:15]}  Kh8 {[%clk 0:02:16]} 19. Nf3 {[%clk 0:02:14]}  c5 {[%clk 0:02:14]} 20. bxc5 {[%clk 0:02:12]}  Nxc5 {[%clk 0:02:13]} 21. Bc2 {[%clk 0:02:12]}  Rc8 {[%clk 0:02:11]} 22. Nd4 {[%clk 0:02:11]}  Qd7 {[%clk 0:01:51]} 23. Red1 {[%clk 0:02:06]}  Qc7 {[%clk 0:01:40]} 24. Rab1 {[%clk 0:01:48]}  Ne4 {[%clk 0:01:03]} 25. Bxe4 {[%clk 0:01:35]}  dxe4 {[%clk 0:01:03]} 26. Nxe6 {[%clk 0:01:11]}  Rxe6 {[%clk 0:00:58]} 27. c4 {[%clk 0:01:11]}  b6 {[%clk 0:00:54]} 28. Rd4 {[%clk 0:01:04]}  Bc5 {[%clk 0:00:51]} 29. Rxe4 {[%clk 0:01:02]}  Qc6 {[%clk 0:00:51]} 30. Qf3 {[%clk 0:00:47]}  Qxa4 {[%clk 0:00:49]} 31. Bg3 {[%clk 0:00:29]}  Qc2 {[%clk 0:00:47]} 32. Rf1 {[%clk 0:00:27]}  Rd8 {[%clk 0:00:44]} 33. Qxf7 {[%clk 0:00:23]}  Re7 {[%clk 0:00:30]} 34. Qf3 {[%clk 0:00:21]}  Rd3 {[%clk 0:00:28]} 35. Qf8+ {[%clk 0:00:20]}  Kh7 {[%clk 0:00:27]} 36. Bh4 {[%clk 0:00:19]}  Rdd7 {[%clk 0:00:16]} 37. Qf5+ {[%clk 0:00:15]}  g6 {[%clk 0:00:16]} 38. Qf3 {[%clk 0:00:14]}  Rf7 {[%clk 0:00:16]} 39. Qg4 {[%clk 0:00:13]}  Rf5 {[%clk 0:00:15]} 40. e6 {[%clk 0:00:13]}  Rc7 {[%clk 0:00:08]} 41. e7 {[%clk 0:00:09]}  h5 {[%clk 0:00:08]} 42. e8=Q {[%clk 0:00:08]}  hxg4 {[%clk 0:00:07]} 43. hxg4 {[%clk 0:00:09]}  Rff7 {[%clk 0:00:06]} 44. g5 {[%clk 0:00:09]}  Rg7 {[%clk 0:00:06]} 45. Bg3 {[%clk 0:00:09]}  Rce7 {[%clk 0:00:05]} 46. Rh4# {[%clk 0:00:09]} 1-0


[Site "https://www.chess.com"]

[Event "Titled Tuesday Blitz November 01 Early 2022"]
[White "Alexikov, Alexander"]
[Black "Rosh Jain"]
[WhiteFideId "14103958"]
[BlackFideId "25789465"]
[WhiteElo "2222"]
[BlackElo "2233"]
[Result "0-1"]
[Round "07"]
[TimeControl "180+1"]
[Date "2022.11.02"]
[WhiteClock "0:00:01"]
[BlackClock "0:00:21"]

1. e4 {[%clk 0:03:00]}  c5 {[%clk 0:02:56]} 2. Nf3 {[%clk 0:02:59]}  d6 {[%clk 0:02:54]} 3. d4 {[%clk 0:02:57]}  cxd4 {[%clk 0:02:55]} 4. Nxd4 {[%clk 0:02:57]}  Nf6 {[%clk 0:02:54]} 5. Nc3 {[%clk 0:02:56]}  a6 {[%clk 0:02:54]} 6. Be2 {[%clk 0:02:56]}  e5 {[%clk 0:02:53]} 7. Nb3 {[%clk 0:02:54]}  Be7 {[%clk 0:02:54]} 8. O-O {[%clk 0:02:52]}  O-O {[%clk 0:02:54]} 9. a4 {[%clk 0:02:51]}  Be6 {[%clk 0:02:53]} 10. Be3 {[%clk 0:02:50]}  Nc6 {[%clk 0:02:48]} 11. Bf3 {[%clk 0:02:50]}  Rc8 {[%clk 0:02:47]} 12. Re1 {[%clk 0:02:48]}  Nb4 {[%clk 0:02:47]} 13. Re2 {[%clk 0:02:46]}  d5 {[%clk 0:02:29]} 14. exd5 {[%clk 0:02:43]}  Nbxd5 {[%clk 0:02:29]} 15. Nxd5 {[%clk 0:02:35]}  Nxd5 {[%clk 0:02:27]} 16. Bd2 {[%clk 0:02:33]}  Bf6 {[%clk 0:02:21]} 17. Rc1 {[%clk 0:01:54]}  Nf4 {[%clk 0:02:11]} 18. Re1 {[%clk 0:01:42]}  Nd5 {[%clk 0:01:32]} 19. g3 {[%clk 0:01:25]}  Qc7 {[%clk 0:01:23]} 20. Ba5 {[%clk 0:01:18]}  Qc4 {[%clk 0:01:21]} 21. Re4 {[%clk 0:01:13]}  Qc6 {[%clk 0:01:20]} 22. c4 {[%clk 0:01:01]}  Ne7 {[%clk 0:00:58]} 23. Rxe5 {[%clk 0:00:52]}  Qxa4 {[%clk 0:00:57]} 24. Re4 {[%clk 0:00:35]}  Bxc4 {[%clk 0:00:56]} 25. Nd2 {[%clk 0:00:07]}  Qxd1+ {[%clk 0:00:45]} 26. Rxd1 {[%clk 0:00:06]}  Bd5 {[%clk 0:00:39]} 27. Re3 {[%clk 0:00:05]}  Bxf3 {[%clk 0:00:39]} 28. Nxf3 {[%clk 0:00:04]}  Nf5 {[%clk 0:00:37]} 29. Rb3 {[%clk 0:00:04]}  b5 {[%clk 0:00:32]} 30. Bb6 {[%clk 0:00:04]}  Rc2 {[%clk 0:00:29]} 31. Ra1 {[%clk 0:00:04]}  Ra8 {[%clk 0:00:21]} 32. Rxb5 {[%clk 0:00:01]}  Nd6 {[%clk 0:00:21]} 0-1


[Site "https://www.chess.com"]

[Event "Titled Tuesday Blitz November 01 Early 2022"]
[White "Aung Thant Zin"]
[Black "Celestino, Rafael Teixeira"]
[WhiteFideId "13000063"]
[BlackFideId "2108925"]
[WhiteElo "2278"]
[BlackElo "2452"]
[Result "1-0"]
[Round "07"]
[TimeControl "180+1"]
[Date "2022.11.02"]
[WhiteClock "0:01:12"]
[BlackClock "0:00:17"]

1. c4 {[%clk 0:02:45]}  e5 {[%clk 0:02:55]} 2. Nc3 {[%clk 0:02:45]}  Nf6 {[%clk 0:02:53]} 3. Nf3 {[%clk 0:02:46]}  Nc6 {[%clk 0:02:52]} 4. e3 {[%clk 0:02:46]}  d5 {[%clk 0:02:51]} 5. cxd5 {[%clk 0:02:44]}  Nxd5 {[%clk 0:02:52]} 6. Bb5 {[%clk 0:02:44]}  Bg4 {[%clk 0:02:49]} 7. Qa4 {[%clk 0:02:33]}  Nxc3 {[%clk 0:01:54]} 8. Bxc6+ {[%clk 0:02:28]}  bxc6 {[%clk 0:01:54]} 9. Qxg4 {[%clk 0:02:00]}  Nd5 {[%clk 0:01:44]} 10. Nxe5 {[%clk 0:01:58]}  Nf6 {[%clk 0:01:21]} 11. Qc4 {[%clk 0:01:50]}  Qd5 {[%clk 0:00:57]} 12. Qxc6+ {[%clk 0:01:45]}  Qxc6 {[%clk 0:00:57]} 13. Nxc6 {[%clk 0:01:45]}  Bd6 {[%clk 0:00:57]} 14. O-O {[%clk 0:01:41]}  O-O {[%clk 0:00:58]} 15. d4 {[%clk 0:01:40]}  a5 {[%clk 0:00:58]} 16. e4 {[%clk 0:01:39]}  Nxe4 {[%clk 0:00:57]} 17. Be3 {[%clk 0:01:35]}  f6 {[%clk 0:00:52]} 18. Rac1 {[%clk 0:01:32]}  Ra6 {[%clk 0:00:46]} 19. f3 {[%clk 0:01:31]}  Ng5 {[%clk 0:00:42]} 20. Bxg5 {[%clk 0:01:30]}  fxg5 {[%clk 0:00:43]} 21. Rfe1 {[%clk 0:01:27]}  Kf7 {[%clk 0:00:40]} 22. d5 {[%clk 0:01:24]}  Bf4 {[%clk 0:00:34]} 23. Re7+ {[%clk 0:01:17]}  Kf6 {[%clk 0:00:31]} 24. Rce1 {[%clk 0:01:16]}  Rb6 {[%clk 0:00:20]} 25. R1e6+ {[%clk 0:01:12]}  Kf5 {[%clk 0:00:17]} 26. g4# {[%clk 0:01:12]} 1-0


[Site "https://www.chess.com"]

[Event "Titled Tuesday Blitz November 01 Early 2022"]
[White "Balkum, Alexander"]
[Black "Reprintsev, Alexander"]
[WhiteFideId "2005069"]
[BlackFideId "14100541"]
[WhiteElo "2322"]
[BlackElo "2230"]
[Result "1-0"]
[Round "07"]
[TimeControl "180+1"]
[Date "2022.11.02"]
[WhiteClock "0:00:51"]
[BlackClock "0:00:04"]

1. e4 {[%clk 0:03:00]}  d5 {[%clk 0:02:12]} 2. exd5 {[%clk 0:02:57]}  Qxd5 {[%clk 0:02:11]} 3. Nc3 {[%clk 0:02:57]}  Qa5 {[%clk 0:02:11]} 4. d4 {[%clk 0:02:57]}  Nf6 {[%clk 0:02:11]} 5. Nf3 {[%clk 0:02:57]}  Nc6 {[%clk 0:02:09]} 6. Bb5 {[%clk 0:02:54]}  Ne4 {[%clk 0:02:08]} 7. Bxc6+ {[%clk 0:02:25]}  bxc6 {[%clk 0:02:06]} 8. O-O {[%clk 0:02:22]}  Nxc3 {[%clk 0:02:05]} 9. bxc3 {[%clk 0:02:22]}  Bf5 {[%clk 0:02:04]} 10. Bd2 {[%clk 0:01:22]}  e6 {[%clk 0:01:59]} 11. Ne5 {[%clk 0:01:20]}  Qa4 {[%clk 0:00:04]} 12. Qf3 {[%clk 0:01:18]}  Bd6 {[%clk 0:00:03]} 13. Qxc6+ {[%clk 0:01:10]}  Qxc6 {[%clk 0:00:03]} 14. Nxc6 {[%clk 0:01:11]}  Bxc2 {[%clk 0:00:03]} 15. c4 {[%clk 0:00:51]}  Bg6 {[%clk 0:00:04]} 16. c5 {[%clk 0:00:51]} 1-0


[Site "https://www.chess.com"]